fUST/lending_fUST_20250225
["ID","MTS","AMOUNT","RATE_DAILY","PERIOD"]
[354350265,1740438681987,-358.03,0.00018,2]
[354350266,1740438681996,-358.03,0.00018,2]
[354350267,1740438682006,-278.686533,0.00018,2]
[354350268,1740438682015,-278.686533,0.00018,2]
[354350269,1740438682024,-278.686533,0.00018,2]
[354350270,1740438682034,-278.686533,0.00018,2]
[354350271,1740438682046,-278.686533,0.00018,2]
[354350272,1740438682056,-278.686533,0.00018,2]
[354350273,1740438682066,-278.686533,0.00018,2]
[354350274,1740438682075,-278.686537,0.00018,2]
[354350275,1740438682085,-19601.91606613,0.00018,7]
[354350276,1740438682094,-367.234333,0.00018,2]
[354350277,1740438682103,-367.234333,0.00018,2]
[354350278,1740438682113,-367.234333,0.00018,2]
[354350279,1740438682122,-367.234333,0.00018,2]
[354350280,1740438682132,-367.234333,0.00018,2]
[354350281,1740438682142,-367.234333,0.00018,2]
[354350282,1740438682152,-151.0,0.00018,2]
[354350283,1740438682162,-151.0,0.00018,2]
[354350284,1740438682171,-184.919408,0.00018,2]
[354350285,1740438682181,-151.0,0.00018,2]
[354350286,1740438682190,-151.0,0.00018,2]
[354350287,1740438682200,-151.0,0.00018,2]
[354350288,1740438682209,-151.0,0.00018,2]
[354350289,1740438682219,-151.0,0.00018,2]
[354350290,1740438682228,-511.0560175,0.0001802,2]
[354350291,1740438682237,-1953.25752523,0.00018082,2]
[354350292,1740438682246,-33117.23,0.000181,2]
[354350293,1740438682256,-150.0,0.00018101,2]
[354350294,1740438682266,-150.0,0.00018101,2]
[354350295,1740438682275,-1970.0,0.00018101,2]
[354350296,1740438682284,-511.0560175,0.0001812,2]
[354350297,1740438682294,-511.0560175,0.0001822,2]
[354350298,1740438682303,-2002.5387097,0.00018256,5]
[354350299,1740438682313,-1587.70781406,0.00018256,2]
[354350300,1740438682322,-511.0560175,0.0001832,2]
[354350301,1740438682331,-500.0,0.00018356,7]
[354350302,1740438682341,-511.0560175,0.0001842,2]
[354350303,1740438682350,-511.0560175,0.0001852,2]
[354350304,1740438682360,-163.29,0.000186,2]
[354350305,1740438682370,-163.29,0.000186,2]
[354350306,1740438682379,-355.293833,0.00018607,2]
[354350307,1740438682388,-511.0560175,0.0001862,2]
[354350308,1740438682397,-10000.0,0.000187,7]
[354350309,1740438682408,-511.0560175,0.0001872,2]
[354350310,1740438682417,-511.0560175,0.0001882,2]
[354350311,1740438682426,-1500.0,0.000189,2]
[354350312,1740438682435,-1500.0,0.000189,2]
[354350313,1740438682571,-1500.0,0.000189,2]
[354350314,1740438682582,-1500.0,0.000189,2]
[354350315,1740438682592,-1500.0,0.000189,2]
[354350316,1740438682602,-1500.0,0.000189,2]
[354350317,1740438682612,-1688.55,0.000189,2]
[354350318,1740438682622,-1500.0,0.000189,2]
[354350319,1740438682632,-1500.0,0.000189,2]
[354350320,1740438682642,-1500.0,0.000189,2]
[354350321,1740438682652,-1480.0,0.000189,2]
[354350322,1740438682662,-500.0,0.000189,2]
[354350323,1740438682671,-17554.48164967,0.000189,2]
[354350324,1740438682681,-500.0,0.00018904,7]
[354350325,1740438682690,-694.72,0.00018904,6]
[354350326,1740438682700,-300.0,0.00018912,30]
[354350327,1740438682710,-300.0,0.00018912,30]
[354350328,1740438682719,-434.29053004,0.00018912,30]
[354350329,1740438682729,-511.0560175,0.0001892,2]
[354350330,1740438682738,-2437.86383754,0.00019,2]
[354350331,1740438682748,-52150.74449737,0.00019,2]
[354350332,1740438682758,-511.0560175,0.0001902,2]
[354350333,1740438682767,-511.0560175,0.0001912,2]
[354350334,1740438682777,-392.518674,0.00019178,2]
[354350335,1740438682786,-171.0,0.00019199,2]
[354350336,1740438682796,-511.0560175,0.0001922,2]
[354350337,1740438682805,-511.0560175,0.0001932,2]
[354350338,1740438682815,-1100.0,0.0001937,2]
[354350339,1740438682825,-511.0560175,0.0001942,2]
[354350340,1740438682835,-500.0,0.00019452,7]
[354350341,1740438682845,-710.6673378,0.00019487,2]
[354350342,1740438682855,-511.0560175,0.0001952,2]
[354350343,1740438682865,-511.0560175,0.0001962,2]
[354350344,1740438682874,-33117.23,0.000197,2]
[354350345,1740438682884,-511.0560175,0.0001972,2]
[354350346,1740438682893,-306.7082091,0.00019761,2]
[354350347,1740438682904,-154.7376905,0.00019761,2]
[354350348,1740438682913,-306.0,0.00019761,2]
[354350349,1740438682922,-220.9116047,0.00019761,2]
[354350350,1740438682932,-1382.730855,0.0001978,5]
[354350351,1740438682941,-25455.26,0.000198,2]
[354350352,1740438682950,-1000.0,0.000198,5]
[354350353,1740438682960,-511.0560175,0.0001982,2]
[354350354,1740438682969,-1000.0,0.0001982,5]
[354350355,1740438682979,-1000.0,0.0001984,5]
[354350356,1740438682989,-1000.0,0.0001986,5]
[354350357,1740438682998,-1000.0,0.0001988,5]
[354350358,1740438683007,-71937.4153512,0.00019888,7]
[354350359,1740438683074,-55640.80040002,0.00019888,7]
[354350360,1740438683098,-277.59,0.00019888,7]
[354350361,1740438683307,-9258.7,0.00012732,2]
[354350362,1740438683319,-428.21999997,0.00012732,2]
[354350363,1740438683422,-313.08000003,0.00012732,2]
[354350364,1740438683432,-500.0,0.00013698,2]
[354350365,1740438683441,-151.0,0.00014273,2]
[354350366,1740438683452,-1112.779145,0.000162,2]
[354350367,1740438683461,-1000.0,0.000167,2]
[354350368,1740438683470,-1000.0,0.000172,2]
[354350369,1740438683480,-1000.0,0.000177,2]
[354350370,1740438683490,-9271.67359323,0.00019888,7]
[354350371,1740438683500,-12439.52065555,0.00019888,7]
[354350372,1740438683510,-1000.0,0.000199,5]
[354350373,1740438683520,-161.3136451,0.000199,2]
[354350374,1740438683529,-161.3136451,0.000199,2]
[354350375,1740438683539,-511.0560175,0.0001992,2]
[354350376,1740438683549,-1000.0,0.0001992,5]
[354350377,1740438683558,-1000.0,0.0001994,5]
[354350378,1740438683568,-1000.0,0.0001996,5]
[354350379,1740438683578,-1000.0,0.0001998,5]
[354350380,1740438683587,-14495.0280306,0.0002,2]
[354350381,1740438683597,-355.06082392,0.0002,2]
[354350382,1740438683607,-192.65,0.0002,2]
[354350383,1740438683616,-429.42,0.0002,2]
[354350384,1740438683627,-10043.0,0.0002,7]
[354350385,1740438683636,-12876.88349627,0.0002,3]
[354350386,1740438683646,-832.12490947,0.0002,2]
[354350387,1740438683656,-160.0,0.0002,2]
[354350388,1740438683665,-160.0,0.0002,2]
[354350389,1740438683674,-160.0,0.0002,3]
[354350390,1740438683684,-160.0,0.0002,7]
[354350391,1740438683693,-167.2135,0.0002,2]
[354350392,1740438683703,-1000.0,0.0002,5]
[354350393,1740438683712,-150.0,0.0002,2]
[354350394,1740438683722,-500.0,0.0002,7]
[354350395,1740438683731,-151.19763648,0.0002,2]
[354350396,1740438683741,-160.0,0.0002,3]
[354350397,1740438683750,-160.0,0.0002,7]
[354350398,1740438683759,-511.0560175,0.0002002,2]
[354350399,1740438683769,-511.0560175,0.0002012,2]
[354350400,1740438683778,-511.0560175,0.0002022,2]
[354350401,1740438683787,-2052.15449606,0.0002023,2]
[354350402,1740438683797,-694.72,0.00020273,8]
[354350403,1740438683807,-511.0560175,0.0002032,2]
[354350404,1740438683818,-16165.81518542,0.0002035,2]
[354350405,1740438683828,-511.0560175,0.0002042,2]
[354350406,1740438683838,-355.3763574,0.00020472,2]
[354350407,1740438683847,-355.3763574,0.00020472,2]
[354350408,1740438683857,-355.3763574,0.00020472,2]
[354350409,1740438683867,-355.3763574,0.00020472,2]
[354350410,1740438683878,-355.3763574,0.00020472,2]
[354350411,1740438683888,-355.1202264,0.00020472,2]
[354350412,1740438683898,-511.0560175,0.0002052,2]
[354350413,1740438683909,-500.0,0.00020547,7]
[354350414,1740438683918,-172.381973,0.00020548,2]
[354350415,1740438683927,-168.977937,0.00020548,2]
[354350416,1740438683937,-511.0560175,0.0002062,2]
[354350417,1740438683946,-511.0560175,0.0002072,2]
[354350418,1740438683956,-511.0560175,0.0002082,2]
[354350419,1740438683965,-396.0,0.00020833,2]
[354350420,1740438683975,-982.98905415,0.0002091,2]
[354350421,1740438683984,-900.0,0.0002091,2]
[354350422,1740438683994,-871.20532504,0.0002091,2]
[354350423,1740438684004,-900.0,0.0002091,2]
[354350424,1740438684015,-900.0,0.0002091,2]
[354350425,1740438684024,-1200.0,0.0002091,2]
[354350426,1740438684037,-900.0,0.0002091,2]
[354350427,1740438684048,-1200.0,0.0002091,2]
[354350428,1740438684058,-900.0,0.0002091,2]
[354350429,1740438684069,-1200.0,0.0002091,2]
[354350430,1740438684080,-900.0,0.0002091,2]
[354350431,1740438684090,-1200.0,0.0002091,2]
[354350432,1740438684100,-900.0,0.0002091,2]
[354350433,1740438684111,-1200.0,0.0002091,2]
[354350434,1740438684122,-900.0,0.0002091,2]
[354350435,1740438684133,-1200.0,0.0002091,2]
[354350436,1740438684143,-900.0,0.0002091,2]
[354350437,1740438684154,-1200.0,0.0002091,2]
[354350438,1740438684163,-900.0,0.0002091,2]
[354350439,1740438684173,-1200.0,0.0002091,2]
[354350440,1740438684183,-900.0,0.0002091,2]
[354350441,1740438684192,-1200.0,0.0002091,2]
[354350442,1740438684202,-900.0,0.0002091,2]
[354350443,1740438684212,-1200.0,0.0002091,2]
[354350444,1740438684222,-900.0,0.0002091,2]
[354350445,1740438684231,-1200.0,0.0002091,2]
[354350446,1740438684242,-1201.70683429,0.0002091,2]
[354350447,1740438684251,-1200.0,0.0002091,2]
[354350448,1740438684261,-500.0,0.0002091,2]
[354350449,1740438684270,-1200.0,0.0002091,2]
[354350450,1740438684280,-1592.01666373,0.0002091,2]
[354350451,1740438684290,-500.0,0.0002091,2]
[354350452,1740438684299,-500.0,0.0002091,2]
[354350453,1740438684309,-500.0,0.0002091,2]
[354350454,1740438684319,-500.0,0.0002091,2]
[354350455,1740438684328,-500.0,0.0002091,2]
[354350456,1740438684338,-500.0,0.0002091,2]
[354350457,1740438684347,-866.86139205,0.0002091,2]
[354350458,1740438684357,-500.0,0.0002091,2]
[354350459,1740438684495,-500.0,0.0002091,2]
[354350460,1740438684506,-500.0,0.0002091,2]
[354350461,1740438684518,-500.0,0.0002091,2]
[354350462,1740438684528,-500.0,0.0002091,2]
[354350463,1740438684538,-500.0,0.0002091,2]
[354350464,1740438684548,-500.0,0.0002091,2]
[354350465,1740438684557,-500.0,0.0002091,2]
[354350466,1740438684567,-500.0,0.0002091,2]
[354350467,1740438684578,-500.0,0.0002091,2]
[354350468,1740438684588,-500.0,0.0002091,2]
[354350469,1740438684598,-859.50824849,0.0002091,2]
[354350470,1740438684608,-511.0560175,0.0002092,2]
[354350471,1740438684618,-10000.0,0.00021,5]
[354350472,1740438684628,-264.33422036,0.00021,2]
[354350473,1740438684637,-238.2526408,0.00021,2]
[354350474,1740438684647,-10378.2245378,0.00021,2]
[354350475,1740438684658,-10000.0,0.00021,7]
[354350476,1740438684668,-3000.0,0.00021,2]
[354350477,1740438684679,-150.0,0.00021,2]
[354350478,1740438684689,-3000.0,0.0002101,2]
[354350479,1740438684699,-511.0560175,0.0002102,2]
[354350480,1740438684709,-3000.0,0.0002102,2]
[354350481,1740438684718,-3000.0,0.0002103,2]
[354350482,1740438684728,-3000.0,0.0002104,2]
[354350483,1740438684738,-3000.0,0.0002105,2]
[354350484,1740438684748,-3000.0,0.0002106,2]
[354350485,1740438684758,-3000.0,0.0002107,2]
[354350486,1740438684768,-3000.0,0.0002108,2]
[354350487,1740438684778,-3000.0,0.0002109,2]
[354350488,1740438684788,-500.0,0.00021095,7]
[354350489,1740438684798,-3000.0,0.000211,2]
[354350490,1740438684808,-150.0,0.00021101,2]
[354350491,1740438684817,-3000.0,0.0002111,2]
[354350492,1740438684827,-511.0560175,0.0002112,2]
[354350493,1740438684837,-3000.0,0.0002112,2]
[354350494,1740438684846,-3000.0,0.0002113,2]
[354350495,1740438684856,-3000.0,0.0002114,2]
[354350496,1740438684866,-3000.0,0.0002115,2]
[354350497,1740438684876,-3000.0,0.0002116,2]
[354350498,1740438684886,-3000.0,0.0002117,2]
[354350499,1740438684895,-3000.0,0.0002118,2]
[354350500,1740438684904,-3000.0,0.0002119,2]
[354350501,1740438684914,-1783.74,0.000212,7]
[354350502,1740438684923,-3000.0,0.000212,2]
[354350503,1740438684932,-3000.0,0.0002121,2]
[354350504,1740438684941,-511.0560175,0.0002122,2]
[354350505,1740438684951,-3000.0,0.0002122,2]
[354350506,1740438684960,-3000.0,0.0002123,2]
[354350507,1740438684969,-3000.0,0.0002124,2]
[354350508,1740438684979,-3000.0,0.0002125,2]
[354350509,1740438684988,-3000.0,0.0002126,2]
[354350510,1740438684997,-3000.0,0.0002127,2]
[354350511,1740438685007,-3000.0,0.0002128,2]
[354350512,1740438685016,-3000.0,0.0002129,2]
[354350513,1740438685025,-3000.0,0.000213,2]
[354350514,1740438685035,-3000.0,0.0002131,2]
[354350515,1740438685047,-511.0560175,0.0002132,2]
[354350516,1740438685057,-3000.0,0.0002132,2]
[354350517,1740438685066,-3000.0,0.0002133,2]
[354350518,1740438685076,-3000.0,0.0002134,2]
[354350519,1740438685086,-3000.0,0.0002135,2]
[354350520,1740438685096,-3000.0,0.0002136,2]
[354350521,1740438685105,-3000.0,0.0002137,2]
[354350522,1740438685115,-3000.0,0.0002138,2]
[354350523,1740438685128,-3000.0,0.0002139,2]
[354350524,1740438685138,-41293.0,0.000214,2]
[354350525,1740438685148,-3000.0,0.000214,2]
[354350526,1740438685160,-3000.0,0.0002141,2]
[354350527,1740438685171,-511.0560175,0.0002142,2]
[354350528,1740438685180,-3000.0,0.0002142,2]
[354350529,1740438685190,-4512.912326,0.0002143,2]
[354350530,1740438685200,-511.0560175,0.0002152,2]
[354350531,1740438685211,-1100.0,0.00021562,2]
[354350532,1740438685220,-16787.80048516,0.000216,2]
[354350533,1740438685241,-2313.35,0.000216,2]
[354350534,1740438685255,-6354.10951484,0.000216,2]
[354350535,1740438685264,-511.0560175,0.0002162,2]
[354350536,1740438685274,-500.0,0.00021643,7]
[354350537,1740438685284,-511.0560175,0.0002172,2]
[354350538,1740438685294,-511.0560175,0.0002182,2]
[354350539,1740438685304,-500.0,0.00021917,2]
[354350540,1740438685314,-500.0,0.00021917,2]
[354350541,1740438685324,-500.0,0.00021917,2]
[354350542,1740438685334,-500.0,0.00021917,2]
[354350543,1740438685344,-500.0,0.00021917,2]
[354350544,1740438685353,-500.0,0.00021917,2]
[354350545,1740438685363,-500.0,0.00021917,2]
[354350546,1740438685389,-500.0,0.00021917,2]
[354350547,1740438685407,-500.0,0.00021917,2]
[354350548,1740438685426,-500.0,0.00021917,2]
[354350549,1740438685446,-500.0,0.00021917,2]
[354350550,1740438685468,-500.0,0.00021917,2]
[354350551,1740438685484,-500.0,0.00021917,2]
[354350552,1740438685502,-500.0,0.00021917,2]
[354350553,1740438685521,-524.9811603,0.00021917,2]
[354350554,1740438685541,-1290.1589811,0.00021918,7]
[354350555,1740438685564,-204.11076405,0.00021918,2]
[354350556,1740438685584,-220.24998327,0.00021918,2]
[354350557,1740438685602,-877.0,0.00021918,2]
[354350558,1740438685620,-511.0560175,0.0002192,2]
[354350559,1740438685640,-167.96,0.0002192,2]
[354350560,1740438685661,-167.96,0.0002192,2]
[354350561,1740438685675,-167.96,0.0002192,2]
[354350562,1740438685691,-167.96,0.0002192,2]
[354350563,1740438685710,-167.96,0.0002192,2]
[354350564,1740438685722,-167.96,0.0002192,2]
[354350565,1740438685739,-167.96,0.0002192,2]
[354350566,1740438685752,-345.76258881,0.00022,2]
[354350567,1740438685765,-1000.0,0.00022,2]
[354350568,1740438685781,-151.07024622,0.00022,2]
[354350569,1740438685798,-4211.39184949,0.00022,2]
[354350570,1740438685818,-21341.21256859,0.00022,2]
[354350571,1740438685836,-500.0,0.00022,2]
[354350572,1740438685847,-500.0,0.00022,2]
[354350573,1740438685856,-900.0,0.00022,2]
[354350574,1740438685866,-900.0,0.00022,2]
[354350575,1740438685876,-900.0,0.00022,2]
[354350576,1740438685886,-900.0,0.00022,2]
[354350577,1740438685897,-190.0,0.00022,2]
[354350578,1740438685907,-900.0,0.00022,2]
[354350579,1740438685917,-900.0,0.00022,2]
[354350580,1740438685927,-1200.0,0.00022,2]
[354350581,1740438685946,-900.0,0.00022,2]
[354350582,1740438685955,-189.35371163,0.00022,2]
[354350583,1740438685965,-1200.0,0.00022,2]
[354350584,1740438685976,-499.3,0.00022,2]
[354350585,1740438685985,-1200.0,0.00022,2]
[354350586,1740438685995,-900.0,0.00022,2]
[354350587,1740438686005,-1200.0,0.00022,2]
[354350588,1740438686015,-900.0,0.00022,2]
[354350589,1740438686025,-1200.0,0.00022,2]
[354350590,1740438686039,-900.0,0.00022,2]
[354350591,1740438686048,-1200.0,0.00022,2]
[354350592,1740438686058,-900.0,0.00022,2]
[354350593,1740438686068,-1200.0,0.00022,2]
[354350594,1740438686081,-900.0,0.00022,2]
[354350595,1740438686091,-1200.0,0.00022,2]
[354350596,1740438686101,-1200.0,0.00022,2]
[354350597,1740438686113,-900.0,0.00022,2]
[354350598,1740438686123,-1200.0,0.00022,2]
[354350599,1740438686133,-900.0,0.00022,2]
[354350600,1740438686142,-1200.0,0.00022,2]
[354350601,1740438686152,-900.0,0.00022,2]
[354350602,1740438686162,-500.0,0.00022,2]
[354350603,1740438686171,-1200.0,0.00022,2]
[354350604,1740438686181,-500.0,0.00022,2]
[354350605,1740438686190,-1200.0,0.00022,2]
[354350606,1740438686201,-1200.0,0.00022,2]
[354350607,1740438686211,-502.63952225,0.00022,2]
[354350608,1740438686220,-163.94030376,0.00022,2]
[354350609,1740438686230,-500.0,0.00022,2]
[354350610,1740438686240,-500.0,0.00022,2]
[354350611,1740438686250,-500.0,0.00022,2]
[354350612,1740438686260,-500.0,0.00022,2]
[354350613,1740438686270,-500.0,0.00022,2]
[354350614,1740438686281,-500.0,0.00022,2]
[354350615,1740438686291,-500.0,0.00022,2]
[354350616,1740438686301,-500.0,0.00022,2]
[354350617,1740438686311,-500.0,0.00022,2]
[354350618,1740438686321,-500.0,0.00022,2]
[354350619,1740438686330,-500.0,0.00022,2]
[354350620,1740438686340,-500.0,0.00022,2]
[354350621,1740438686349,-500.0,0.00022,2]
[354350622,1740438686358,-500.0,0.00022,2]
[354350623,1740438686368,-500.0,0.00022,2]
[354350624,1740438686377,-500.0,0.00022,2]
[354350625,1740438686387,-500.0,0.00022,2]
[354350626,1740438686397,-500.0,0.00022,2]
[354350627,1740438686409,-500.0,0.00022,2]
[354350628,1740438686419,-500.0,0.00022,2]
[354350629,1740438686428,-511.0560175,0.0002202,2]
[354350630,1740438686438,-486.73191453,0.000221,2]
[354350631,1740438686448,-511.0560175,0.0002212,3]
[354350632,1740438686458,-500.0,0.00022191,7]
[354350633,1740438686877,-877.0,0.00022192,2]
[354350634,1740438686896,-511.0560175,0.0002222,3]
[354350635,1740438686911,-511.0560175,0.0002232,7]
[354350636,1740438686925,-18505.5971073,0.00022325,2]
[354350637,1740438686938,-21422.499835,0.00022325,2]
[354350638,1740438686951,-42239.999997,0.00022325,2]
[354350639,1740438687015,-500.0,0.0001378,2]
[354350640,1740438687026,-151.0,0.00014602,2]
[354350641,1740438687040,-151.0,0.000149,2]
[354350642,1740438687054,-124.48,0.00015342,2]
[354350643,1740438687066,-26.52,0.00015342,2]
[354350644,1740438687076,-151.0,0.000162,2]
[354350645,1740438687086,-4888.03999982,0.00022325,2]
[354350646,1740438687103,-1420.0,0.00022325,2]
[354350647,1740438751883,200.0,0.00018,120]
[354350648,1740438793567,151.0,0.00018,120]
[354350649,1740438837095,150.0,0.00017912,60]
[354350650,1740438838260,150.0,0.00017912,90]
[354350651,1740438848884,3000.0,0.00017912,120]
[354350652,1740438903215,1489.17418736,0.00017912,60]
[354350653,1740438903283,1300.0,0.00017912,120]
[354350654,1740438903320,1600.96943535,0.00017912,120]
[354350655,1740438903357,2492.22114402,0.00017912,120]
[354350657,1740439136668,150.0,0.00017904,60]
[354350658,1740439217012,265.874361,9.041e-05,2]
[354350660,1740439432432,150.0,0.00017872,60]
[354350661,1740439432839,150.0,0.00017872,90]
[354350663,1740439625142,-297.49,0.00010959,2]
[354350664,1740439625167,-1176.63190564,0.00012559,2]
[354350666,1740439634102,-313.18882966,0.00012559,2]
[354350667,1740439634126,-378.46901977,0.00012796,2]
[354350668,1740439638100,-64.03796993,0.00012796,2]
[354350669,1740439638124,-423.39750935,0.00013461,2]
[354350670,1740439667635,3245.08926156,0.0001791,120]
[354350671,1740439669304,265.00489636,0.0001791,120]
[354350672,1740439673198,4523.97853826,0.0001791,120]
[354350673,1740439680611,726.07357135,0.0001791,60]
[354350674,1740439696273,239.01491061,0.0001791,120]
[354350675,1740439700911,3256.21822548,0.0001791,120]
[354350676,1740439707283,898.56203697,0.0001791,120]
[354350677,1740439709566,2501.56336181,0.0001791,120]
[354350678,1740439715989,1355.88175891,0.0001791,120]
[354350679,1740439716683,675.28653035,0.0001791,120]
[354350680,1740439717778,2887.53879554,0.0001791,120]
[354350681,1740439717872,1465.11328961,0.0001791,60]
[354350682,1740439717917,240.82074905,0.0001791,120]
[354350683,1740439719742,1026.74167576,0.0001791,120]
[354350684,1740439720308,929.42537517,0.0001791,120]
[354350685,1740439720339,1142.58282213,0.0001791,90]
[354350686,1740439720590,1160.0,0.0001791,120]
[354350687,1740439720705,2000.0,0.0001791,120]
[354350688,1740439721302,1077.6944765,0.0001791,120]
[354350689,1740439721871,932.44748259,0.0001791,120]
[354350690,1740439722676,1033.53499408,0.0001791,120]
[354350691,1740439723876,282.63823515,0.0001791,120]
[354350692,1740439724742,988.91248351,0.0001791,120]
[354350693,1740439725221,1679.0159926,0.0001791,120]
[354350694,1740439725496,438.00892682,0.0001791,120]
[354350695,1740439726528,573.83855218,0.0001791,120]
[354350696,1740439726853,418.49873609,0.0001791,120]
[354350697,1740439726936,223.39675999,0.0001791,120]
[354350698,1740439726998,211.82873115,0.0001791,120]
[354350699,1740439727724,221.13413837,0.0001791,120]
[354350704,1740439728512,310.98269041,0.0001791,120]
[354350705,1740439732614,150.0,0.0001791,90]
[354350708,1740439761179,-3792.79922277,0.00012696,2]
[354350709,1740439761201,-1435.83201201,0.00013461,2]
[354350710,1740439761222,-389.63972468,0.00013497,2]
[354350711,1740439761244,-300.0,0.00013499,2]
[354350712,1740439761265,-31200.11293594,0.000135,2]
[354350713,1740439761286,-13955.54157245,0.000135,2]
[354350746,1740439832120,-3986.35913739,0.00012671,2]
[354350752,1740439832177,-554.15,0.00012671,2]
[354350755,1740439832190,-1004.25000015,0.00012671,2]
[354350757,1740439832205,-4455.24086246,0.00012671,2]
[354350759,1740439832215,-300.0,0.00013499,2]
[354350761,1740439832225,-2688.50988437,0.000135,2]
[354350763,1740439832235,-4973.0775319,0.00013511,2]
[354350765,1740439832247,-8332.40825365,0.00013511,2]
[354350766,1740439832258,-1000.0,0.00013511,2]
[354350767,1740439832270,-5296.43028058,0.00013511,2]
[354350768,1740439832280,-3000.0,0.00013597,2]
[354350769,1740439832290,-259.75981646,0.00013597,2]
[354350770,1740439832300,-259.75981645,0.00013598,2]
[354350771,1740439832310,-259.75981645,0.00013598,2]
[354350772,1740439832320,-500.0,0.00013673,2]
[354350773,1740439832330,-500.0,0.00013673,2]
[354350774,1740439832340,-501.99086354,0.00013673,2]
[354350775,1740439832350,-252.90622407,0.00013673,2]
[354350777,1740439832360,-592.63451535,0.00013673,2]
[354350779,1740439832370,-239.15891132,0.00013673,2]
[354350780,1740439832380,-500.0,0.00013673,2]
[354350782,1740439832390,-500.0,0.00013673,2]
[354350784,1740439832401,-500.0,0.00013673,2]
[354350785,1740439832411,-500.0,0.00013673,2]
[354350786,1740439832424,-152.30865747,0.00013673,2]
[354350788,1740439832434,-500.0,0.00013673,2]
[354350790,1740439832444,-500.0,0.00013673,2]
[354350792,1740439832455,-501.8171183,0.00013673,2]
[354350795,1740439832466,-500.0,0.00013673,2]
[354350797,1740439832477,-500.0,0.00013673,2]
[354350800,1740439832488,-500.0,0.00013673,2]
[354350803,1740439832497,-635.38089831,0.00013673,2]
[354350806,1740439832507,-543.52801653,0.00013673,2]
[354350808,1740439832518,-302.0,0.0001369,2]
[354350810,1740439832528,-160.16695171,0.0001369,2]
[354350812,1740439832537,-500.0,0.00013697,2]
[354350814,1740439832548,-500.0,0.00013697,2]
[354350816,1740439832558,-500.0,0.00013697,2]
[354350818,1740439832567,-500.0,0.00013697,2]
[354350819,1740439832577,-500.0,0.00013697,2]
[354350820,1740439832587,-500.0,0.00013697,2]
[354350822,1740439832597,-597.14667707,0.00013697,2]
[354350823,1740439832607,-454.17248381,0.00013697,2]
[354350824,1740439832617,-500.0,0.00013698,2]
[354350825,1740439832627,-500.0,0.00013698,2]
[354350826,1740439832637,-500.0,0.00013698,2]
[354350827,1740439832647,-500.0,0.00013698,2]
[354350828,1740439832657,-500.0,0.00013698,2]
[354350829,1740439832666,-500.0,0.00013698,2]
[354350830,1740439832676,-500.0,0.00013698,2]
[354350831,1740439832688,-500.0,0.00013698,2]
[354350832,1740439832698,-500.0,0.00013698,2]
[354350833,1740439832707,-500.0,0.00013698,2]
[354350834,1740439832717,-500.0,0.00013698,2]
[354350835,1740439832727,-500.0,0.00013698,2]
[354350836,1740439832737,-500.0,0.00013698,2]
[354350837,1740439832747,-500.0,0.00013698,2]
[354350838,1740439832756,-500.0,0.00013698,2]
[354350839,1740439832766,-500.0,0.00013698,2]
[354350840,1740439832776,-500.0,0.00013698,2]
[354350841,1740439832786,-500.0,0.00013698,2]